fUST/lending_fUST_20250404
["ID","MTS","AMOUNT","RATE_DAILY","PERIOD"]
[357079451,1743697850205,-500.0,0.00016438,2]
[357079452,1743697850215,-545.281853,0.00016438,2]
[357079453,1743697850224,-545.281853,0.00016438,2]
[357079454,1743697850233,-545.281853,0.00016438,2]
[357079455,1743697850242,-545.281853,0.00016438,2]
[357079456,1743697850256,-545.281853,0.00016438,2]
[357079457,1743697850267,-545.281853,0.00016438,2]
[357079458,1743697850276,-545.281853,0.00016438,2]
[357079459,1743697850286,-545.281853,0.00016438,2]
[357079460,1743697850296,-545.281853,0.00016438,2]
[357079461,1743697850306,-151.0,0.00016438,2]
[357079462,1743697850315,-545.281853,0.00016438,2]
[357079463,1743697850327,-151.0,0.00016438,2]
[357079464,1743697850337,-151.0,0.00016438,2]
[357079465,1743697850346,-151.0,0.00016438,2]
[357079466,1743697850355,-151.0,0.00016438,2]
[357079467,1743697850364,-151.0,0.00016438,2]
[357079468,1743697850374,-151.0,0.00016438,2]
[357079469,1743697850383,-151.0,0.00016438,2]
[357079470,1743697850393,-151.0,0.00016438,2]
[357079471,1743697850402,-151.0,0.00016438,2]
[357079472,1743697850411,-500.0,0.00016438,2]
[357079473,1743697850420,-151.0,0.00016438,2]
[357079474,1743697850430,-151.0,0.00016438,2]
[357079475,1743697850439,-151.0,0.00016438,2]
[357079476,1743697850448,-151.0,0.00016438,2]
[357079477,1743697850458,-151.0,0.00016438,2]
[357079478,1743697850468,-561.7695044,0.00016438,2]
[357079479,1743697850477,-500.0,0.00016438,2]
[357079480,1743697850487,-180.582605,0.00016438,2]
[357079481,1743697850496,-761.18,0.00016438,2]
[357079482,1743697850506,-500.0,0.00016438,2]
[357079483,1743697850515,-500.0,0.00016438,2]
[357079484,1743697850525,-500.0,0.00016438,2]
[357079485,1743697850535,-1290.63,0.00016438,2]
[357079486,1743697850544,-500.0,0.00016438,2]
[357079487,1743697850553,-582.20646763,0.00016438,2]
[357079488,1743697850562,-500.0,0.00016438,2]
[357079489,1743697850571,-500.0,0.00016438,2]
[357079490,1743697850580,-1163.079464,0.00016438,2]
[357079491,1743697850590,-1163.079464,0.00016438,2]
[357079492,1743697850599,-1163.079464,0.00016438,2]
[357079493,1743697850608,-1163.079464,0.00016438,2]
[357079494,1743697850618,-1163.079464,0.00016438,2]
[357079495,1743697850627,-511.79313859,0.00016438,2]
[357079496,1743697850921,-651.28632541,0.00016438,2]
[357079497,1743697850931,-1163.079464,0.00016438,2]
[357079498,1743697850941,-1163.079464,0.00016438,2]
[357079499,1743697850950,-1163.079464,0.00016438,2]
[357079500,1743697850959,-469.8415906,0.00016438,2]
[357079501,1743697850975,-693.2378734,0.00016438,2]
[357079502,1743697850984,-1163.079464,0.00016438,2]
[357079503,1743697850993,-1163.079464,0.00016438,2]
[357079504,1743697851003,-37.03336436,0.00016438,2]
[357079505,1743697891766,365.3,0.00010959,2]
[357079506,1743697974728,333.46,0.00010959,2]
[357079507,1743698046599,156.0627576,0.00014,2]
[357079508,1743698103094,902.6588945,0.000138,2]
[357080972,1743698208257,198.0,0.00013,2]
[357082077,1743698934778,158.3102661,0.00013916,2]
[357082078,1743698973253,6452.5435739,0.00013831,2]
[357082079,1743699018048,2003.51627946,0.0002,120]
[357082085,1743699032130,-1058.7216521,0.00014053,2]
[357082086,1743699032142,-2621.1584261,0.00014053,2]
[357082087,1743699032152,-577.8709197,0.00014212,2]
[357082088,1743699032162,-166.32839,0.00014741,2]
[357082089,1743699032172,-166.32839,0.00014777,2]
[357082090,1743699032182,-106.46099597,0.00014814,2]
[357082091,1743699032208,-59.86739403,0.00014814,2]
[357082092,1743699032218,-300.0,0.00014999,2]
[357082093,1743699032228,-8423.23260598,0.00015,2]
[357082094,1743699032261,-15575.94489756,0.00015,2]
[357082095,1743699032270,-2458.61237139,0.00015409,2]
[357082096,1743699032279,-40590.23520599,0.00015444,2]
[357082123,1743699043212,-2002.26107324,0.00015444,2]
[357082124,1743699043225,-1000.0,0.00015444,2]
[357082138,1743699046216,-29553.35176388,0.00015444,2]
[357082139,1743699046225,-183.87275965,0.00015508,2]
[357082140,1743699046235,-335.57202076,0.00015508,2]
[357082141,1743699046245,-41736.56547828,0.00015509,2]
[357082142,1743699046254,-50000.0,0.000158,5]
[357082143,1743699046264,-700.4523024,0.00015944,2]
[357082144,1743699046273,-500.0,0.00016199,2]
[357082145,1743699046282,-586.81978846,0.00016199,2]
[357082146,1743699046292,-57864.0,0.000162,2]
[357082147,1743699046301,-420.0,0.00016416,2]
[357082148,1743699046311,-298.01629472,0.00016437,2]
[357082149,1743699046320,-152.010861,0.00016438,2]
[357082151,1743699046330,-152.010861,0.00016438,2]
[357082153,1743699046339,-152.010861,0.00016438,2]
[357082155,1743699046349,-152.010861,0.00016438,2]
[357082157,1743699046360,-152.010861,0.00016438,2]
[357082159,1743699046369,-152.010861,0.00016438,2]
[357082161,1743699046379,-152.010861,0.00016438,2]
[357082163,1743699046389,-152.010861,0.00016438,2]
[357082165,1743699046399,-152.010859,0.00016438,2]
[357082167,1743699046408,-228.085633,0.00016438,2]
[357082169,1743699046418,-228.085633,0.00016438,2]
[357082171,1743699046427,-228.085633,0.00016438,2]
[357082173,1743699046437,-228.085633,0.00016438,2]
[357082175,1743699046447,-228.085633,0.00016438,2]
[357082176,1743699046457,-228.085633,0.00016438,2]
[357082177,1743699046466,-228.085633,0.00016438,2]
[357082178,1743699046476,-228.085633,0.00016438,2]
[357082179,1743699046485,-228.085633,0.00016438,2]
[357082180,1743699046494,-228.085633,0.00016438,2]
[357082181,1743699046503,-228.085633,0.00016438,2]
[357082182,1743699046513,-228.085633,0.00016438,2]
[357082183,1743699046523,-228.085633,0.00016438,2]
[357082184,1743699046532,-228.085633,0.00016438,2]
[357082185,1743699046541,-228.085633,0.00016438,2]
[357082186,1743699046551,-228.085633,0.00016438,2]
[357082187,1743699046561,-228.085633,0.00016438,2]
[357082188,1743699046571,-228.085633,0.00016438,2]
[357082189,1743699046580,-228.085633,0.00016438,2]
[357082190,1743699046590,-228.085634,0.00016438,2]
[357082191,1743699046599,-500.0,0.00016438,2]
[357082192,1743699046611,-151.0,0.00016438,2]
[357082193,1743699046620,-156.401177,0.00016438,2]
[357082194,1743699046631,-500.0,0.00016438,2]
[357082195,1743699046644,-1197.29,0.00016438,2]
[357082196,1743699046654,-500.0,0.00016438,2]
[357082197,1743699046663,-500.0,0.00016438,2]
[357082198,1743699046675,-500.0,0.00016438,2]
[357082199,1743699046684,-511.31249726,0.00016438,2]
[357082200,1743699046693,-500.0,0.00016438,2]
[357082201,1743699046702,-500.0,0.00016438,2]
[357082202,1743699046712,-151.0,0.00016438,2]
[357082203,1743699046721,-151.0,0.00016438,2]
[357082204,1743699046730,-151.0,0.00016438,2]
[357082205,1743699046740,-190.67300153,0.00016438,2]
[357082206,1743699046749,-500.0,0.00016438,2]
[357082207,1743699046760,-500.0,0.00016438,2]
[357082208,1743699046769,-500.0,0.00016438,2]
[357082209,1743699046779,-151.0,0.00016438,2]
[357082210,1743699046788,-151.0,0.00016438,2]
[357082211,1743699046799,-500.0,0.00016438,2]
[357082212,1743699046808,-500.0,0.00016438,2]
[357082213,1743699046817,-500.0,0.00016438,2]
[357082214,1743699046827,-437.87069655,0.00016438,2]
[357082215,1743699046836,-500.0,0.00016438,2]
[357082216,1743699046845,-500.0,0.00016438,2]
[357082217,1743699046855,-243.036129,0.00016438,2]
[357082218,1743699046864,-243.036129,0.00016438,2]
[357082219,1743699046874,-500.0,0.00016438,2]
[357082220,1743699046883,-301.688236,0.00016438,2]
[357082221,1743699046892,-301.688236,0.00016438,2]
[357082222,1743699046902,-243.036129,0.00016438,2]
[357082223,1743699046911,-243.036129,0.00016438,2]
[357082224,1743699046920,-301.688236,0.00016438,2]
[357082225,1743699046929,-301.688236,0.00016438,2]
[357082226,1743699046939,-1000.0,0.00016438,2]
[357082227,1743699046948,-500.0,0.00016438,2]
[357082228,1743699046958,-500.0,0.00016438,2]
[357082229,1743699046967,-709.05,0.00016438,2]
[357082230,1743699046976,-500.0,0.00016438,2]
[357082231,1743699046985,-500.0,0.00016438,2]
[357082232,1743699046995,-500.0,0.00016438,2]
[357082233,1743699047006,-500.0,0.00016438,2]
[357082234,1743699047016,-500.0,0.00016438,2]
[357082235,1743699047025,-500.0,0.00016438,2]
[357082236,1743699047035,-150.87667745,0.00016438,2]
[357082237,1743699047044,-500.0,0.00016438,2]
[357082238,1743699047053,-500.0,0.00016438,2]
[357082239,1743699047063,-500.0,0.00016438,2]
[357082240,1743699047072,-500.0,0.00016438,2]
[357082241,1743699047081,-500.0,0.00016438,2]
[357082242,1743699047091,-500.0,0.00016438,2]
[357082243,1743699047100,-500.0,0.00016438,2]
[357082244,1743699047111,-729.46,0.00016438,2]
[357082245,1743699047120,-451.06144265,0.00016438,2]
[357082246,1743699047130,-1236.85,0.00016438,2]
[357082247,1743699047139,-500.0,0.00016438,2]
[357082248,1743699047148,-500.0,0.00016438,2]
[357082249,1743699047158,-151.0,0.00016438,2]
[357082250,1743699047167,-500.0,0.00016438,2]
[357082251,1743699047177,-151.0,0.00016438,2]
[357082252,1743699047186,-151.0,0.00016438,2]
[357082253,1743699047196,-1029.31,0.00016438,2]
[357082254,1743699047206,-151.0,0.00016438,2]
[357082255,1743699047215,-500.0,0.00016438,2]
[357082256,1743699047224,-863.66,0.00016438,2]
[357082257,1743699047234,-500.0,0.00016438,2]
[357082258,1743699047243,-500.0,0.00016438,2]
[357082259,1743699047253,-500.0,0.00016438,2]
[357082260,1743699047263,-500.0,0.00016438,2]
[357082261,1743699047272,-397.17185885,0.00016438,2]
[357082262,1743699047282,-151.0,0.00016438,2]
[357082263,1743699047291,-500.0,0.00016438,2]
[357082264,1743699047301,-232.781925,0.00016438,2]
[357082265,1743699047310,-500.0,0.00016438,2]
[357082266,1743699047320,-232.781925,0.00016438,2]
[357082267,1743699047329,-500.0,0.00016438,2]
[357082268,1743699047339,-500.0,0.00016438,2]
[357082269,1743699047349,-500.0,0.00016438,2]
[357082270,1743699047358,-3135.528319,0.00016438,2]
[357082271,1743699047368,-3135.528319,0.00016438,2]
[357082272,1743699047378,-157.42358237,0.00016438,2]
[357082273,1743699047387,-187.74860332,0.00016438,2]
[357082274,1743699047397,-222.19191348,0.00016438,2]
[357082275,1743699047407,-500.0,0.00016438,2]
[357082276,1743699047416,-1557.193691,0.00016438,2]
[357082277,1743699047426,-500.0,0.00016438,2]
[357082278,1743699047436,-500.0,0.00016438,2]
[357082279,1743699047445,-500.0,0.00016438,2]
[357082280,1743699047455,-1557.193691,0.00016438,2]
[357082281,1743699047465,-500.0,0.00016438,2]
[357082282,1743699047475,-500.0,0.00016438,2]
[357082283,1743699047484,-500.0,0.00016438,2]
[357082284,1743699047493,-151.0,0.00016438,2]
[357082285,1743699047503,-500.0,0.00016438,2]
[357082286,1743699047512,-151.0,0.00016438,2]
[357082287,1743699047522,-500.0,0.00016438,2]
[357082288,1743699047531,-500.0,0.00016438,2]
[357082289,1743699047708,-164.875921,0.00016438,2]
[357082290,1743699047720,-164.875921,0.00016438,2]
[357082291,1743699047731,-200.53632234,0.00016438,2]
[357082292,1743699047741,-849.37,0.00016438,2]
[357082293,1743699047752,-765.48,0.00016438,2]
[357082294,1743699047764,-151.0,0.00016438,2]
[357082295,1743699047774,-151.0,0.00016438,2]
[357082296,1743699047784,-151.0,0.00016438,2]
[357082297,1743699047796,-2502.78,0.00016438,2]
[357082298,1743699047807,-1215.81,0.00016438,2]
[357082299,1743699047817,-1179.0,0.00016438,2]
[357082300,1743699047827,-500.0,0.00016438,2]
[357082301,1743699047839,-500.0,0.00016438,2]
[357082302,1743699047848,-500.0,0.00016438,2]
[357082303,1743699047862,-500.0,0.00016438,2]
[357082304,1743699047871,-151.0,0.00016438,2]
[357082305,1743699047880,-500.0,0.00016438,2]
[357082306,1743699047890,-1345.63,0.00016438,2]
[357082307,1743699047899,-886.98,0.00016438,2]
[357082308,1743699047908,-151.0,0.00016438,2]
[357082309,1743699047917,-500.0,0.00016438,2]
[357082310,1743699047926,-2474.73,0.00016438,2]
[357082311,1743699047935,-500.0,0.00016438,2]
[357082312,1743699047945,-500.0,0.00016438,2]
[357082313,1743699047954,-500.0,0.00016438,2]
[357082314,1743699047963,-500.0,0.00016438,2]
[357082315,1743699047972,-831.94,0.00016438,2]
[357082316,1743699047981,-500.0,0.00016438,2]
[357082317,1743699047991,-500.0,0.00016438,2]
[357082318,1743699048000,-990.91,0.00016438,2]
[357082319,1743699048011,-500.0,0.00016438,2]
[357082320,1743699048020,-869.08,0.00016438,2]
[357082321,1743699048030,-500.0,0.00016438,2]
[357082322,1743699048039,-500.0,0.00016438,2]
[357082323,1743699048049,-500.0,0.00016438,2]
[357082324,1743699048058,-183.55197263,0.00016438,2]
[357082325,1743699048069,-5078.86,0.00016438,2]
[357082326,1743699048079,-500.0,0.00016438,2]
[357082327,1743699048090,-500.0,0.00016438,2]
[357082328,1743699048099,-500.0,0.00016438,2]
[357082329,1743699048111,-567.68,0.00016438,2]
[357082330,1743699048121,-500.0,0.00016438,2]
[357082331,1743699048131,-593.61,0.00016438,2]
[357082332,1743699048140,-500.0,0.00016438,2]
[357082333,1743699048150,-500.0,0.00016438,2]
[357082334,1743699048160,-500.0,0.00016438,2]
[357082335,1743699048170,-613.24,0.00016438,2]
[357082336,1743699048179,-500.0,0.00016438,2]
[357082337,1743699048188,-500.0,0.00016438,2]
[357082338,1743699048198,-151.0,0.00016438,2]
[357082339,1743699048208,-500.0,0.00016438,2]
[357082340,1743699048218,-151.0,0.00016438,2]
[357082341,1743699048228,-550.86,0.00016438,2]
[357082342,1743699048238,-587.0,0.00016438,2]
[357082343,1743699048248,-601.7,0.00016438,2]
[357082344,1743699048258,-500.0,0.00016438,2]
[357082345,1743699048268,-463.380117,0.00016438,2]
[357082346,1743699048277,-463.380117,0.00016438,2]
[357082347,1743699048287,-752.33,0.00016438,2]
[357082348,1743699048305,-1238.68,0.00016438,2]
[357082349,1743699048315,-299.32431995,0.00016438,2]
[357082350,1743699048324,-463.380117,0.00016438,2]
[357082351,1743699048335,-463.380117,0.00016438,2]
[357082352,1743699048346,-575.66651384,0.00016438,2]
[357082353,1743699048358,-1395.56,0.00016438,2]
[357082354,1743699048368,-151.0,0.00016438,2]
[357082355,1743699048378,-151.0,0.00016438,2]
[357082356,1743699048388,-556.94,0.00016438,2]
[357082357,1743699048397,-583.340469,0.00016438,2]
[357082358,1743699048407,-583.340469,0.00016438,2]
[357082359,1743699048417,-583.340469,0.00016438,2]
[357082360,1743699048426,-583.340469,0.00016438,2]
[357082361,1743699048436,-707.98121,0.00016438,2]
[357082362,1743699048446,-707.98121,0.00016438,2]
[357082363,1743699048456,-500.0,0.00016438,2]
[357082364,1743699048466,-707.98121,0.00016438,2]
[357082365,1743699048479,-707.98121,0.00016438,2]
[357082366,1743699048489,-151.0,0.00016438,2]
[357082367,1743699048498,-151.0,0.00016438,2]
[357082368,1743699048507,-500.0,0.00016438,2]
[357082369,1743699048517,-151.0,0.00016438,2]
[357082370,1743699048528,-213.165874,0.00016438,2]
[357082371,1743699048538,-268.724732,0.00016438,2]
[357082372,1743699048547,-500.0,0.00016438,2]
[357082373,1743699048557,-500.0,0.00016438,2]
[357082374,1743699048567,-500.0,0.00016438,2]
[357082375,1743699048578,-500.0,0.00016438,2]
[357082376,1743699048588,-500.0,0.00016438,2]
[357082377,1743699048598,-500.0,0.00016438,2]
[357082378,1743699048608,-500.0,0.00016438,2]
[357082379,1743699048618,-500.0,0.00016438,2]
[357082380,1743699048629,-500.0,0.00016438,2]
[357082381,1743699048643,-500.0,0.00016438,2]
[357082382,1743699048654,-2082.14,0.00016438,2]
[357082383,1743699048664,-500.0,0.00016438,2]
[357082384,1743699048675,-500.0,0.00016438,2]
[357082385,1743699048684,-500.0,0.00016438,2]
[357082386,1743699048694,-845.42,0.00016438,2]
[357082387,1743699048703,-500.0,0.00016438,2]
[357082388,1743699048714,-151.0,0.00016438,2]
[357082389,1743699048724,-151.0,0.00016438,2]
[357082390,1743699048733,-1529.01888336,0.00016442,2]
[357082391,1743699048745,-809.33518391,0.00016575,2]
[357082392,1743699048755,-730.19646209,0.00016575,2]
[357082393,1743699048764,-150.64254391,0.00016575,2]
[357082394,1743699048774,-178.08186753,0.00016575,2]
[357082395,1743699048784,-150.23324199,0.00016575,2]
[357082396,1743699048793,-508.01191633,0.00016575,2]
[357082397,1743699048802,-500.0,0.00016575,2]
[357082398,1743699048811,-500.0,0.00016575,2]
[357082399,1743699048821,-500.0,0.00016575,2]
[357082400,1743699048830,-649.92,0.00016575,2]
[357082401,1743699048840,-606.76664104,0.00016575,2]
[357082402,1743699048849,-500.0,0.00016575,2]
[357082403,1743699048862,-500.0,0.00016575,2]
[357082404,1743699048872,-760.41333484,0.00016575,2]
[357082405,1743699048882,-500.0,0.00016575,2]
[357082406,1743699048892,-500.0,0.00016575,2]
[357082407,1743699048902,-500.0,0.00016575,2]
[357082408,1743699048912,-500.0,0.00016575,2]
[357082409,1743699048921,-500.0,0.00016575,2]
[357082410,1743699048931,-940.97492782,0.00016575,2]
[357082411,1743699048940,-500.0,0.00016575,2]
[357082412,1743699048950,-50000.0,0.000166,4]
[357082413,1743699048960,-151.0,0.000166,2]
[357082414,1743699048969,-151.0,0.000166,2]
[357082415,1743699048978,-243.036129,0.000166,2]
[357082416,1743699048988,-301.688236,0.000166,2]
[357082417,1743699048998,-243.036129,0.000166,2]
[357082418,1743699049008,-301.688236,0.000166,2]
[357082419,1743699049018,-151.0,0.000166,2]
[357082420,1743699049027,-151.0,0.000166,2]
[357082421,1743699049037,-151.0,0.000166,2]
[357082422,1743699049047,-151.0,0.000166,2]
[357082423,1743699049057,-151.0,0.000166,2]
[357082424,1743699049066,-151.0,0.000166,2]
[357082425,1743699049076,-232.781925,0.000166,2]
[357082426,1743699049086,-232.781925,0.000166,2]
[357082427,1743699049096,-3135.528319,0.000166,2]
[357082428,1743699049107,-3135.528319,0.000166,2]
[357082429,1743699049118,-1557.193691,0.000166,2]
[357082430,1743699049128,-1557.193691,0.000166,2]
[357082431,1743699049137,-151.0,0.000166,2]
[357082432,1743699049147,-151.0,0.000166,2]
[357082433,1743699049157,-164.875921,0.000166,2]
[357082434,1743699049167,-164.875921,0.000166,2]
[357082435,1743699049176,-151.0,0.000166,2]
[357082436,1743699049186,-151.0,0.000166,2]
[357082437,1743699049196,-151.0,0.000166,2]
[357082438,1743699049206,-151.0,0.000166,2]
[357082439,1743699049216,-151.0,0.000166,2]
[357082440,1743699049226,-151.0,0.000166,2]
[357082441,1743699049236,-463.380117,0.000166,2]
[357082442,1743699049246,-463.380117,0.000166,2]
[357082443,1743699049256,-151.0,0.000166,2]
[357082444,1743699049266,-583.340469,0.000166,2]
[357082445,1743699049276,-583.340469,0.000166,2]
[357082446,1743699049286,-707.98121,0.000166,2]
[357082447,1743699049295,-707.98121,0.000166,2]
[357082448,1743699049305,-152.31702,0.000166,2]
[357082449,1743699049314,-12517.44636928,0.00016712,3]
[357082450,1743699049325,-160.0,0.00016712,3]
[357082451,1743699049335,-500.0,0.00016712,2]
[357082452,1743699049345,-200.04,0.00016712,2]
[357082453,1743699049355,-912.77676807,0.00016712,2]
[357082454,1743699049366,-500.0,0.00016712,2]
[357082455,1743699049377,-500.0,0.00016712,2]
[357082456,1743699049387,-500.0,0.00016712,2]
[357082457,1743699049396,-806.89253632,0.00016712,2]
[357082458,1743699049407,-519.34798346,0.00016712,2]
[357082459,1743699049418,-500.0,0.00016712,2]
[357082460,1743699049427,-500.0,0.00016712,2]
[357082461,1743699049437,-500.0,0.00016712,2]
[357082462,1743699049447,-500.0,0.00016712,2]
[357082463,1743699049456,-500.0,0.00016712,2]
[357082464,1743699049467,-500.0,0.00016712,2]
[357082465,1743699049476,-1197.29,0.00016712,2]
[357082466,1743699049486,-500.0,0.00016712,2]
[357082467,1743699049497,-500.0,0.00016712,2]
[357082468,1743699049506,-500.0,0.00016712,2]
[357082469,1743699049516,-500.0,0.00016712,2]
[357082470,1743699049526,-500.0,0.00016712,2]
[357082471,1743699049536,-151.0,0.00016712,2]
[357082472,1743699049545,-247.88547176,0.00016712,2]
[357082473,1743699049555,-151.0,0.00016712,2]
[357082474,1743699049564,-500.0,0.00016712,2]
[357082475,1743699049574,-500.0,0.00016712,2]
[357082476,1743699049584,-500.0,0.00016712,2]
[357082477,1743699049594,-500.0,0.00016712,2]
[357082478,1743699049603,-243.036129,0.00016712,2]
[357082479,1743699049614,-408.23121036,0.00016712,2]
[357082480,1743699049624,-301.688236,0.00016712,2]
[357082481,1743699049633,-243.036129,0.00016712,2]
[357082482,1743699049646,-301.688236,0.00016712,2]
[357082483,1743699049655,-500.0,0.00016712,2]
[357082484,1743699049665,-709.05,0.00016712,2]
[357082485,1743699049675,-500.0,0.00016712,2]
[357082486,1743699049686,-500.0,0.00016712,2]
[357082487,1743699049696,-500.0,0.00016712,2]
[357082488,1743699049705,-500.0,0.00016712,2]
[357082489,1743699049716,-500.0,0.00016712,2]
[357082490,1743699049725,-500.0,0.00016712,2]
[357082491,1743699049735,-500.0,0.00016712,2]
[357082492,1743699049744,-539.98993981,0.00016712,2]
[357082493,1743699049753,-500.0,0.00016712,2]
[357082494,1743699049763,-500.0,0.00016712,2]
[357082495,1743699049773,-500.0,0.00016712,2]
[357082496,1743699049783,-500.0,0.00016712,2]
[357082497,1743699049792,-500.0,0.00016712,2]
[357082498,1743699049803,-729.46,0.00016712,2]
[357082499,1743699049813,-1236.85,0.00016712,2]
[357082500,1743699049823,-500.0,0.00016712,2]
[357082501,1743699049833,-500.0,0.00016712,2]
[357082502,1743699049843,-151.0,0.00016712,2]
[357082503,1743699049853,-151.0,0.00016712,2]
[357082504,1743699049864,-500.0,0.00016712,2]
[357082505,1743699049874,-151.0,0.00016712,2]
[357082506,1743699049885,-151.0,0.00016712,2]
[357082507,1743699049895,-151.0,0.00016712,2]
[357082508,1743699049907,-151.0,0.00016712,2]
[357082509,1743699049917,-1029.31,0.00016712,2]
[357082510,1743699049928,-151.0,0.00016712,2]
[357082511,1743699049937,-151.0,0.00016712,2]
[357082512,1743699049947,-500.0,0.00016712,2]
[357082513,1743699049957,-863.66,0.00016712,2]
[357082514,1743699049967,-500.0,0.00016712,2]
[357082515,1743699049976,-500.0,0.00016712,2]
[357082516,1743699049985,-151.0,0.00016712,2]
[357082517,1743699049995,-151.0,0.00016712,2]
[357082518,1743699050004,-151.0,0.00016712,2]
[357082519,1743699050013,-151.0,0.00016712,2]
[357082520,1743699050021,-500.0,0.00016712,2]
[357082521,1743699050030,-232.781925,0.00016712,2]
[357082522,1743699050040,-232.781925,0.00016712,2]
[357082523,1743699050049,-500.0,0.00016712,2]
[357082524,1743699050058,-232.781925,0.00016712,2]
[357082525,1743699050068,-232.781925,0.00016712,2]
[357082526,1743699050078,-500.0,0.00016712,2]
[357082527,1743699050087,-500.0,0.00016712,2]
[357082528,1743699050096,-500.0,0.00016712,2]
[357082529,1743699050106,-3135.528319,0.00016712,2]
[357082530,1743699050120,-3135.528319,0.00016712,2]
[357082531,1743699050130,-3135.528319,0.00016712,2]
[357082532,1743699050140,-3135.528319,0.00016712,2]
[357082533,1743699050149,-1557.193691,0.00016712,2]
[357082534,1743699050158,-1557.193691,0.00016712,2]
[357082535,1743699050168,-500.0,0.00016712,2]
[357082536,1743699050177,-1557.193691,0.00016712,2]
[357082537,1743699050187,-1557.193691,0.00016712,2]
[357082538,1743699050196,-500.0,0.00016712,2]
[357082539,1743699050205,-231.85848269,0.00016712,2]
[357082540,1743699050215,-500.0,0.00016712,2]
[357082541,1743699050225,-151.0,0.00016712,2]
[357082542,1743699050234,-151.0,0.00016712,2]
[357082543,1743699050244,-500.0,0.00016712,2]
[357082544,1743699050253,-500.0,0.00016712,2]
[357082545,1743699050262,-164.875921,0.00016712,2]
[357082546,1743699050271,-164.875921,0.00016712,2]
[357082547,1743699050281,-164.875921,0.00016712,2]
[357082548,1743699050290,-164.875921,0.00016712,2]
[357082549,1743699050298,-849.37,0.00016712,2]
[357082550,1743699050308,-765.48,0.00016712,2]
[357082551,1743699050317,-151.0,0.00016712,2]
[357082552,1743699050327,-151.0,0.00016712,2]
[357082553,1743699050336,-151.0,0.00016712,2]
[357082554,1743699050346,-151.0,0.00016712,2]
[357082555,1743699050355,-151.0,0.00016712,2]
[357082556,1743699050366,-151.0,0.00016712,2]
[357082557,1743699050375,-2502.78,0.00016712,2]
[357082558,1743699050385,-1215.81,0.00016712,2]
[357082559,1743699050395,-1179.0,0.00016712,2]
[357082560,1743699050404,-500.0,0.00016712,2]
[357082561,1743699050414,-500.0,0.00016712,2]
[357082562,1743699050423,-500.0,0.00016712,2]
[357082563,1743699050432,-500.0,0.00016712,2]
[357082564,1743699050441,-500.0,0.00016712,2]
[357082565,1743699050451,-151.0,0.00016712,2]
[357082566,1743699050460,-151.0,0.00016712,2]
[357082567,1743699050469,-886.98,0.00016712,2]
[357082568,1743699050480,-1345.63,0.00016712,2]
[357082569,1743699050489,-151.0,0.00016712,2]
[357082570,1743699050499,-151.0,0.00016712,2]
[357082571,1743699050508,-500.0,0.00016712,2]
[357082572,1743699050517,-2474.73,0.00016712,2]
[357082573,1743699050527,-500.0,0.00016712,2]
[357082574,1743699050536,-500.0,0.00016712,2]